[Event "7th Iberoamerican-ch 2019"]
[Site "Linares"]
[Date "2019.08.12"]
[Round "3.4"]
[White "Zambrana, Oswaldo"]
[Black "Henriquez Villagra, Cristobal"]
[Result "0-1"]
[ECO "C50"]
[WhiteElo "2440"]
[BlackElo "2560"]
[Annotator "ChessBase"]
[PlyCount "88"]
[EventDate "2019.08.10"]
[EventType "swiss"]
[EventCountry "ESP"]
[SourceTitle "playchess.com"]
[Source "ChessBase"]
[SourceQuality "1"]
[TimeControl "5400+30"]

1. e4 {[%emt 0:00:17]} e5 {[%emt 0:01:25]} 2. Nf3 {[%emt 0:00:11]} Nc6 {[%emt 0:00:05]} 3. Bc4 {[%emt 0:00:05]} Bc5 {[%emt 0:00:05]} 4. O-O {[%emt 0:00:47]} Nf6 {[%emt 0:00:39]} 5. d3 {[%emt 0:00:37]} d6 {[%emt 0:00:13]} 6. c3 {[%emt 0:00:08]} a6 {[%emt 0:01:11]} 7. a4 {[%emt 0:00:22]} Ba7 {[%emt 0:04:04]} 8. Be3 {[%emt 0:00:32]} O-O {[%emt 0:02:38]} 9. Nbd2 {[%emt 0:00:39]} Ne7 {[%emt 0:10:00]} 10. Nh4 {[%emt 0:09:14]} d5 {[%emt 0:09:16]} 11. exd5 {[%emt 0:00:40]} Bxe3 {[%emt 0:00:06]} 12. fxe3 {[%emt 0:00:10]} Nexd5 {[%emt 0:00:09]} 13. Qe2 {[%emt 0:04:15]} Ng4 {[%emt 0:10:33]} 14. Bxd5 {[%emt 0:00:22]} Qxd5 {[%emt 0:00:15]} 15. Nf5 Bxf5 {[%emt 0:00:30]} 16. Rxf5 {[%emt 0:00:22]} Nh6 {[%emt 0:00:11]} 17. Rf2 {[%emt 0:05:35]} Rad8 {[%emt 0:05:50]} 18. d4 {[%emt 0:01:33]} exd4 {[%emt 0:01:56]} 19. exd4 {[%emt 0:00:03]} c5 {[%emt 0:00:22]} 20. dxc5 {[%emt 0:00:42]} Qxc5 {[%emt 0:00:13]} 21. Nb3 {[%emt 0:01:24]} Qg5 {[%emt 0:07:16]} 22. Nd4 {[%emt 0:05:00]} Rfe8 {[%emt 0:02:39]} 23. Qf3 {[%emt 0:01:30]} Rd7 {[%emt 0:00:22]} 24. h3 {[%emt 0:01:52]} Rde7 {[%emt 0:02:19]} 25. Qf4 {[%emt 0:03:37]} Qa5 {[%emt 0:02:18]} 26. Rf3 {[%emt 0:05:45]} Qb6 {[%emt 0:01:16]} 27. Rg3 {[%emt 0:08:54]} Re6 {[%emt 0:09:58]} 28. Rf1 {[%emt 0:05:55]} Rg6 {[%emt 0:08:02]} 29. Re3 {[%emt 0:01:42]} Rf8 {[%emt 0:00:52]} 30. Re2 {[%emt 0:03:49]} Kh8 {[%emt 0:03:48]} 31. Rfe1 {[%emt 0:05:05]} Ng8 {[%emt 0:05:00]} 32. b4 {[%emt 0:04:17]} Nf6 {[%emt 0:03:52]} 33. Re7 {[%emt 0:01:38]} h6 {[%emt 0:01:20]} 34. Qf3 {[%emt 0:05:29]} Qd8 {[%emt 0:02:21]} 35. Rxb7 {[%emt 0:00:23]} Re8 {[%emt 0:02:37]} 36. Rd1 {[%emt 0:07:12]} Qd5 {[%emt 0:00:17]} 37. Rf1 {[%emt 0:05:17]} Re4 {[%emt 0:00:18]} 38. Rc7 {[%emt 0:01:19]} Qg5 {[%emt 0:02:04]} 39. Rc5 {[%emt 0:05:51]} Qd2 {[%emt 0:00:18]} 40. Rf2 {[%emt 0:03:27]} Re1+ {[%emt 0:00:46]} 41. Rf1 {[%emt 0:00:09]} Ne4 {[%emt 0:00:29]} 42. Rc8+ {[%emt 0:02:51]} Kh7 {[%emt 0:00:01]} 43. Rxe1 {[%emt 0:00:10]} Qxe1+ {[%emt 0:00:05]} 44. Kh2 {[%emt 0:00:07]} Ng3 {[%emt 0:00:12]} 0-1

[Event "7th Iberoamerican-ch 2019"]
[Site "Linares"]
[Date "2019.08.12"]
[Round "3.5"]
[White "Cruz, Cristhian"]
[Black "Huerga Leache, Mikel"]
[Result "1/2-1/2"]
[ECO "A15"]
[WhiteElo "2562"]
[BlackElo "2440"]
[Annotator "ChessBase"]
[PlyCount "86"]
[EventDate "2019.08.10"]
[EventType "swiss"]
[EventCountry "ESP"]
[SourceTitle "playchess.com"]
[Source "ChessBase"]
[SourceQuality "1"]
[TimeControl "5400+30"]

1. c4 {[%emt 0:00:00]} Nf6 {[%emt 0:00:17]} 2. g3 {[%emt 0:00:05]} e5 {[%emt 0:02:20]} 3. Bg2 {[%emt 0:00:26]} c6 {[%emt 0:00:09]} 4. d4 {[%emt 0:01:20]} e4 {[%emt 0:01:13]} 5. Nc3 {[%emt 0:02:12]} d5 {[%emt 0:00:12]} 6. Bg5 {[%emt 0:02:46]} Bb4 {[%emt 0:10:03]} 7. Nh3 {[%emt 0:07:41]} Nbd7 {[%emt 0:05:38]} 8. O-O {[%emt 0:12:25]} h6 {[%emt 0:02:30]} 9. Bd2 {[%emt 0:12:44]} Bxc3 {[%emt 0:01:06]} 10. Bxc3 {[%emt 0:00:09]} O-O {[%emt 0:01:53]} 11. cxd5 {[%emt 0:02:21]} cxd5 {[%emt 0:00:48]} 12. f3 {[%emt 0:04:24]} Re8 {[%emt 0:02:30]} 13. Nf2 {[%emt 0:00:17]} Nb6 {[%emt 0:01:39]} 14. b3 {[%emt 0:04:44]} Bf5 {[%emt 0:01:13]} 15. Rc1 {[%emt 0:00:09]} Qd6 {[%emt 0:07:45]} 16. Bb2 {[%emt 0:02:06]} Re7 {[%emt 0:00:43]} 17. Rc3 {[%emt 0:10:20]} Rc8 {[%emt 0:05:14]} 18. fxe4 {[%emt 0:09:57]} Nxe4 {[%emt 0:11:27]} 19. Rxc8+ {[%emt 0:00:06]} Nxc8 {[%emt 0:01:38]} 20. Nd3 {[%emt 0:00:05]} Bh7 {[%emt 0:00:40]} 21. Qc1 {[%emt 0:01:27]} Rc7 {[%emt 0:05:43]} 22. Qf4 {[%emt 0:00:40]} Qxf4 {[%emt 0:01:56]} 23. Nxf4 {[%emt 0:00:14]} Nb6 {[%emt 0:00:42]} 24. Rc1 {[%emt 0:02:16]} Rxc1+ {[%emt 0:02:27]} 25. Bxc1 {[%emt 0:00:15]} g5 {[%emt 0:05:08]} 26. Nd3 {[%emt 0:04:22]} Nc3 {[%emt 0:10:11]} 27. Kf2 {[%emt 0:00:30]} Be4 {[%emt 0:03:25]} 28. Bh3 {[%emt 0:05:08]} f5 {[%emt 0:04:37]} 29. Bd2 {[%emt 0:01:21]} Nb5 {[%emt 0:00:55]} 30. Nc5 {[%emt 0:04:19]} Nd6 {[%emt 0:01:19]} 31. Ke1 {[%emt 0:01:20]} Nbc8 {[%emt 0:02:03]} 32. Bf1 {[%emt 0:05:20]} Kf7 {[%emt 0:01:06]} 33. h4 {[%emt 0:00:34]} Kg6 {[%emt 0:00:48]} 34. hxg5 {[%emt 0:00:56]} hxg5 {[%emt 0:00:00]} 35. Ne6 {[%emt 0:02:18]} Nf7 {[%emt 0:00:02]} 36. Kd1 {[%emt 0:00:30]} Kf6 {[%emt 0:00:21]} 37. Nc5 {[%emt 0:00:09]} Ncd6 {[%emt 0:01:00]} 38. Nd7+ {[%emt 0:00:35]} Ke7 {[%emt 0:00:41]} 39. Ne5 {[%emt 0:00:11]} Ke6 {[%emt 0:01:55]} 40. Nf3 {[%emt 0:01:14]} Kf6 {[%emt 0:00:13]} 41. Ne5 {[%emt 0:00:14]} Ke6 {[%emt 0:01:01]} 42. Nf3 {[%emt 0:00:04]} Kf6 {[%emt 0:01:15]} 43. Ne5 {[%emt 0:00:06]} Ke6 1/2-1/2

[Event "7th Iberoamerican-ch 2019"]
[Site "Linares"]
[Date "2019.08.12"]
[Round "3.7"]
[White "Cuenca Jimenez, Jose Fernando"]
[Black "Plazuelo Pascual, Juan"]
[Result "0-1"]
[ECO "B10"]
[WhiteElo "2534"]
[BlackElo "2403"]
[Annotator "ChessBase"]
[PlyCount "56"]
[EventDate "2019.08.10"]
[EventType "swiss"]
[EventCountry "ESP"]
[SourceTitle "playchess.com"]
[Source "ChessBase"]
[SourceQuality "1"]
[TimeControl "5400+30"]

1. e4 {[%emt 0:00:00]} c6 {[%emt 0:00:00]} 2. c4 {[%emt 0:02:38]} d5 {[%emt 0:00:29]} 3. exd5 {[%emt 0:00:05]} cxd5 {[%emt 0:00:08]} 4. cxd5 {[%emt 0:00:08]} Nf6 {[%emt 0:00:43]} 5. Nc3 {[%emt 0:00:05]} Nxd5 {[%emt 0:01:22]} 6. Nf3 {[%emt 0:00:06]} Nc6 {[%emt 0:00:36]} 7. Bb5 {[%emt 0:00:45]} g6 {[%emt 0:04:04]} 8. Qb3 {[%emt 0:12:36]} Be6 {[%emt 0:16:02]} 9. Ng5 {[%emt 0:08:17]} Qd7 {[%emt 0:06:22]} 10. Nxe6 {[%emt 0:20:33]} Qxe6+ {[%emt 0:00:30]} 11. Kf1 {[%emt 0:02:43]} O-O-O {[%emt 0:13:55]} 12. Nxd5 {[%emt 0:12:16]} Qxd5 {[%emt 0:02:14]} 13. Qxd5 {[%emt 0:00:11]} Rxd5 {[%emt 0:00:05]} 14. Bc4 {[%emt 0:00:03]} Rd6 {[%emt 0:05:40]} 15. d3 {[%emt 0:03:54]} Bg7 {[%emt 0:04:45]} 16. Rb1 {[%emt 0:03:35]} Ne5 {[%emt 0:10:42]} 17. Be3 {[%emt 0:14:51]} Nxd3 {[%emt 0:07:28]} 18. Ke2 {[%emt 0:05:27]} Nxb2 {[%emt 0:06:45]} 19. Bxf7 {[%emt 0:06:15]} Na4 20. Rhc1+ {[%emt 0:00:43]} Nc3+ {[%emt 0:04:27]} 21. Rxc3+ {[%emt 0:01:11]} Bxc3 {[%emt 0:00:08]} 22. Rc1 {[%emt 0:00:02]} Rc6 {[%emt 0:00:27]} 23. Rxc3 {[%emt 0:00:04]} Rxc3 {[%emt 0:00:03]} 24. Bd4 {[%emt 0:00:01]} Rc2+ {[%emt 0:00:24]} 25. Ke3 {[%emt 0:03:23]} Rd8 {[%emt 0:00:54]} 26. Bxa7 {[%emt 0:00:14]} Rd6 {[%emt 0:00:36]} 27. Bd4 {[%emt 0:02:09]} Rxd4 {[%emt 0:00:13]} 28. Kxd4 {[%emt 0:00:06]} Rxf2 {[%emt 0:00:04]} 0-1

[Event "7th Iberoamerican-ch 2019"]
[Site "Linares"]
[Date "2019.08.12"]
[Round "3.10"]
[White "Del Rio De Angelis, Salvador G."]
[Black "Salgado Lopez, Ivan"]
[Result "1/2-1/2"]
[ECO "E47"]
[WhiteElo "2464"]
[BlackElo "2596"]
[Annotator "ChessBase"]
[PlyCount "74"]
[EventDate "2019.08.10"]
[EventType "swiss"]
[EventCountry "ESP"]
[SourceTitle "playchess.com"]
[Source "ChessBase"]
[SourceQuality "1"]
[TimeControl "5400+30"]

1. d4 {[%emt 0:00:00]} Nf6 {[%emt 0:00:00]} 2. c4 {[%emt 0:00:00]} e6 {[%emt 0:00:00]} 3. Nc3 {[%emt 0:00:34]} Bb4 {[%emt 0:00:00]} 4. e3 {[%emt 0:00:18]} O-O {[%emt 0:00:04]} 5. Bd3 {[%emt 0:00:39]} c5 {[%emt 0:00:17]} 6. Nge2 {[%emt 0:00:25]} cxd4 {[%emt 0:01:57]} 7. exd4 {[%emt 0:00:08]} d5 {[%emt 0:00:13]} 8. cxd5 {[%emt 0:00:24]} Nxd5 {[%emt 0:00:38]} 9. O-O {[%emt 0:00:19]} Nf6 {[%emt 0:02:48]} 10. Bc2 {[%emt 0:02:57]} Nc6 {[%emt 0:04:36]} 11. a3 {[%emt 0:01:35]} Bxc3 {[%emt 0:08:11]} 12. bxc3 {[%emt 0:00:33]} Qa5 {[%emt 0:00:25]} 13. c4 {[%emt 0:06:52]} Rd8 {[%emt 0:03:52]} 14. Bb2 {[%emt 0:00:28]} Qh5 {[%emt 0:04:15]} 15. Qe1 {[%emt 0:06:38]} b6 {[%emt 0:05:52]} 16. d5 {[%emt 0:04:07]} exd5 {[%emt 0:01:57]} 17. Nf4 {[%emt 0:01:41]} Qh4 {[%emt 0:24:12]} 18. Nxd5 {[%emt 0:04:20]} Be6 {[%emt 0:04:37]} 19. Nxf6+ {[%emt 0:17:11]} gxf6 {[%emt 0:00:07]} 20. Qe4 {[%emt 0:00:07]} Qxe4 {[%emt 0:02:01]} 21. Bxe4 {[%emt 0:00:06]} Rd6 {[%emt 0:04:05]} 22. Rac1 {[%emt 0:00:41]} Rc8 {[%emt 0:02:22]} 23. Bxf6 {[%emt 0:05:31]} Nd4 {[%emt 0:00:32]} 24. Rfd1 {[%emt 0:04:12]} Ne2+ {[%emt 0:04:50]} 25. Kf1 {[%emt 0:02:24]} Ng3+ {[%emt 0:01:31]} 26. hxg3 {[%emt 0:00:56]} Bxc4+ {[%emt 0:00:13]} 27. Kg1 {[%emt 0:02:29]} Rxf6 {[%emt 0:00:15]} 28. Rd7 {[%emt 0:10:32]} a6 {[%emt 0:02:28]} 29. Bd5 {[%emt 0:06:48]} b5 {[%emt 0:00:37]} 30. Rc3 {[%emt 0:00:25]} Rb8 {[%emt 0:07:07]} 31. Bxc4 {[%emt 0:05:16]} bxc4 {[%emt 0:00:05]} 32. Rxc4 {[%emt 0:00:11]} Rb1+ {[%emt 0:00:27]} 33. Kh2 {[%emt 0:00:07]} Rxf2 {[%emt 0:00:18]} 34. Rd8+ {[%emt 0:00:43]} Kg7 {[%emt 0:01:16]} 35. Rg4+ {[%emt 0:00:08]} Kf6 {[%emt 0:01:37]} 36. Rf4+ {[%emt 0:00:53]} Rxf4 {[%emt 0:00:41]} 37. gxf4 {[%emt 0:00:06]} Kf5 {[%emt 0:03:39]} 1/2-1/2

[Event "7th Iberoamerican-ch 2019"]
[Site "Linares"]
[Date "2019.08.12"]
[Round "3.11"]
[White "Damaso, Rui"]
[Black "Vazquez Igarza, Renier"]
[Result "0-1"]
[ECO "A01"]
[WhiteElo "2425"]
[BlackElo "2558"]
[Annotator "ChessBase"]
[PlyCount "58"]
[EventDate "2019.08.10"]
[EventType "swiss"]
[EventCountry "ESP"]
[SourceTitle "playchess.com"]
[Source "ChessBase"]
[SourceQuality "1"]
[TimeControl "5400+30"]

1. b3 {[%emt 0:15:16]} e5 {[%emt 0:00:11]} 2. Bb2 {[%emt 0:00:17]} Nc6 {[%emt 0:00:54]} 3. Nf3 {[%emt 0:01:04]} e4 {[%emt 0:02:39]} 4. Nd4 {[%emt 0:00:11]} Nf6 {[%emt 0:00:08]} 5. e3 {[%emt 0:01:52]} Bc5 {[%emt 0:03:05]} 6. Nf5 {[%emt 0:12:53]} g6 {[%emt 0:12:30]} 7. Ng3 {[%emt 0:03:46]} d5 {[%emt 0:06:20]} 8. d3 {[%emt 0:04:16]} O-O {[%emt 0:00:40]} 9. dxe4 {[%emt 0:03:02]} Nxe4 {[%emt 0:00:13]} 10. Nxe4 {[%emt 0:12:47]} dxe4 {[%emt 0:00:12]} 11. Be2 {[%emt 0:00:20]} Qg5 {[%emt 0:03:49]} 12. Kf1 {[%emt 0:01:31]} Rd8 {[%emt 0:01:02]} 13. Qe1 {[%emt 0:01:59]} Bb4 {[%emt 0:07:28]} 14. Nc3 {[%emt 0:01:49]} Qh4 {[%emt 0:05:14]} 15. a3 {[%emt 0:06:34]} Bf8 {[%emt 0:01:50]} 16. f4 {[%emt 0:00:34]} Qe7 {[%emt 0:02:20]} 17. g4 {[%emt 0:10:45]} Bg7 {[%emt 0:01:35]} 18. h4 {[%emt 0:00:12]} h6 {[%emt 0:12:44]} 19. Rb1 {[%emt 0:04:55]} a6 {[%emt 0:07:19]} 20. h5 {[%emt 0:02:22]} g5 {[%emt 0:00:18]} 21. fxg5 {[%emt 0:00:08]} hxg5 {[%emt 0:05:07]} 22. h6 {[%emt 0:00:20]} Be5 {[%emt 0:00:39]} 23. Qf2 {[%emt 0:01:16]} Kh8 {[%emt 0:06:08]} 24. Bc4 {[%emt 0:04:30]} Bxg4 {[%emt 0:02:27]} 25. Nd5 {[%emt 0:00:55]} Qd6 {[%emt 0:04:13]} 26. Qf6+ {[%emt 0:03:19]} Qxf6+ {[%emt 0:01:54]} 27. Nxf6 {[%emt 0:00:07]} Bf3 {[%emt 0:00:56]} 28. Rg1 {[%emt 0:00:21]} Bxb2 {[%emt 0:00:56]} 29. Rxb2 {[%emt 0:00:17]} Rd6 0-1

[Event "7th Iberoamerican-ch 2019"]
[Site "Linares"]
[Date "2019.08.12"]
[Round "3.13"]
[White "Salinas Herrera, Pablo"]
[Black "Blanco Acevedo, Cristobal Jose"]
[Result "1-0"]
[ECO "B75"]
[WhiteElo "2498"]
[BlackElo "2342"]
[Annotator "ChessBase"]
[PlyCount "103"]
[EventDate "2019.08.10"]
[EventType "swiss"]
[EventCountry "ESP"]
[SourceTitle "playchess.com"]
[Source "ChessBase"]
[SourceQuality "1"]
[TimeControl "5400+30"]

1. e4 {[%emt 0:02:15]} c5 {[%emt 0:00:30]} 2. Nf3 {[%emt 0:00:05]} d6 {[%emt 0:00:11]} 3. d4 {[%emt 0:00:05]} cxd4 {[%emt 0:00:06]} 4. Nxd4 {[%emt 0:00:04]} Nf6 {[%emt 0:00:10]} 5. Nc3 {[%emt 0:00:08]} g6 {[%emt 0:00:05]} 6. Be3 {[%emt 0:00:04]} Bg7 {[%emt 0:00:08]} 7. f3 {[%emt 0:00:05]} Nc6 {[%emt 0:00:33]} 8. Qd2 {[%emt 0:00:07]} O-O {[%emt 0:00:05]} 9. g4 {[%emt 0:00:03]} Bd7 {[%emt 0:02:57]} 10. O-O-O {[%emt 0:00:17]} a6 {[%emt 0:05:33]} 11. h4 {[%emt 0:00:06]} h5 {[%emt 0:00:07]} 12. gxh5 {[%emt 0:00:05]} Nxh5 {[%emt 0:00:08]} 13. Rg1 {[%emt 0:00:06]} Kh7 {[%emt 0:09:47]} 14. f4 {[%emt 0:13:04]} Nxd4 {[%emt 0:03:52]} 15. Bxd4 {[%emt 0:00:05]} e5 {[%emt 0:04:20]} 16. fxe5 {[%emt 0:00:06]} dxe5 {[%emt 0:00:18]} 17. Bc5 {[%emt 0:01:30]} Be6 {[%emt 0:05:43]} 18. Bxf8 {[%emt 0:00:18]} Qxf8 {[%emt 0:02:45]} 19. Kb1 {[%emt 0:06:33]} Bh6 {[%emt 0:00:29]} 20. Qf2 {[%emt 0:00:13]} Rc8 {[%emt 0:02:38]} 21. Nd5 {[%emt 0:00:09]} Nf4 {[%emt 0:00:25]} 22. c3 {[%emt 0:13:09]} b5 {[%emt 0:03:39]} 23. Qb6 {[%emt 0:02:41]} Rb8 {[%emt 0:04:26]} 24. Qc7 {[%emt 0:00:33]} Nxd5 {[%emt 0:05:59]} 25. exd5 {[%emt 0:00:11]} Bf5+ {[%emt 0:00:09]} 26. Bd3 {[%emt 0:08:02]} e4 {[%emt 0:00:10]} 27. Bc2 {[%emt 0:00:02]} b4 {[%emt 0:00:08]} 28. h5 {[%emt 0:01:27]} bxc3 {[%emt 0:05:44]} 29. hxg6+ {[%emt 0:00:06]} Bxg6 {[%emt 0:00:08]} 30. Qxc3 {[%emt 0:00:14]} Bg7 {[%emt 0:02:51]} 31. Qh3+ {[%emt 0:00:05]} Kg8 {[%emt 0:00:08]} 32. Bb3 {[%emt 0:00:02]} Qd6 {[%emt 0:00:35]} 33. Qe3 {[%emt 0:04:54]} a5 {[%emt 0:04:19]} 34. Rd2 {[%emt 0:00:15]} a4 {[%emt 0:07:55]} 35. Bxa4 {[%emt 0:05:20]} Be5 {[%emt 0:01:02]} 36. Rc2 {[%emt 0:07:31]} Rb4 {[%emt 0:05:35]} 37. Bb3 {[%emt 0:00:25]} Bd4 {[%emt 0:02:20]} 38. Rc8+ {[%emt 0:00:38]} Kg7 {[%emt 0:00:25]} 39. Qh3 {[%emt 0:00:02]} e3+ {[%emt 0:02:39]} 40. Ka1 {[%emt 0:00:19]} Bxb2+ {[%emt 0:02:25]} 41. Kxb2 {[%emt 0:00:05]} Qf6+ {[%emt 0:00:05]} 42. Ka3 {[%emt 0:02:35]} Rxb3+ {[%emt 0:02:26]} 43. axb3 {[%emt 0:00:22]} Qa6+ {[%emt 0:00:57]} 44. Kb4 {[%emt 0:00:12]} Qb6+ {[%emt 0:01:15]} 45. Kc4 {[%emt 0:00:48]} Qa6+ {[%emt 0:00:08]} 46. Kc5 {[%emt 0:00:40]} Qa5+ {[%emt 0:01:44]} 47. Kc6 {[%emt 0:00:18]} Qa6+ {[%emt 0:00:12]} 48. Kd7 {[%emt 0:01:43]} Qb7+ {[%emt 0:01:58]} 49. Ke8 {[%emt 0:00:30]} e2 {[%emt 0:03:08]} 50. Qd7 {[%emt 0:00:25]} e1=Q+ {[%emt 0:01:36]} 51. Rxe1 {[%emt 0:00:04]} Qb4 {[%emt 0:00:05]} 52. Re7 1-0

[Event "7th Iberoamerican-ch 2019"]
[Site "Linares"]
[Date "2019.08.12"]
[Round "3.15"]
[White "Gavarrete, Nahun"]
[Black "Garriga Cazorla, Pere"]
[Result "0-1"]
[ECO "A37"]
[WhiteElo "2344"]
[BlackElo "2495"]
[Annotator "ChessBase"]
[PlyCount "100"]
[EventDate "2019.08.10"]
[EventType "swiss"]
[EventCountry "ESP"]
[SourceTitle "playchess.com"]
[Source "ChessBase"]
[SourceQuality "1"]
[TimeControl "5400+30"]

1. c4 {[%emt 0:08:02]} c5 {[%emt 0:00:00]} 2. Nc3 {[%emt 0:01:02]} Nc6 {[%emt 0:00:00]} 3. g3 {[%emt 0:00:17]} g6 {[%emt 0:00:11]} 4. Bg2 {[%emt 0:00:08]} Bg7 {[%emt 0:00:03]} 5. Nf3 {[%emt 0:00:22]} d6 {[%emt 0:00:17]} 6. O-O {[%emt 0:00:12]} e6 {[%emt 0:00:29]} 7. e3 {[%emt 0:02:29]} Nge7 {[%emt 0:00:04]} 8. d4 {[%emt 0:00:14]} O-O {[%emt 0:00:05]} 9. dxc5 {[%emt 0:09:13]} dxc5 {[%emt 0:00:02]} 10. Qxd8 {[%emt 0:06:04]} Rxd8 {[%emt 0:00:05]} 11. Rd1 {[%emt 0:00:11]} Rxd1+ {[%emt 0:01:50]} 12. Nxd1 {[%emt 0:00:02]} b6 {[%emt 0:00:28]} 13. Bd2 {[%emt 0:06:07]} Ba6 {[%emt 0:05:06]} 14. Rc1 {[%emt 0:05:12]} Rd8 {[%emt 0:00:07]} 15. b3 {[%emt 0:05:39]} Nb4 {[%emt 0:11:05]} 16. a3 {[%emt 0:00:18]} Nd3 {[%emt 0:00:38]} 17. Rc2 {[%emt 0:00:13]} Nc6 {[%emt 0:06:49]} 18. Bf1 {[%emt 0:15:16]} Bb7 {[%emt 0:08:49]} 19. Bg2 {[%emt 0:04:39]} Ncb4 {[%emt 0:05:08]} 20. axb4 {[%emt 0:05:30]} Nxb4 {[%emt 0:00:10]} 21. Bxb4 {[%emt 0:00:19]} Rxd1+ {[%emt 0:00:29]} 22. Be1 {[%emt 0:00:03]} Bxf3 {[%emt 0:00:07]} 23. Bxf3 {[%emt 0:00:12]} Rxe1+ {[%emt 0:00:04]} 24. Kg2 {[%emt 0:00:05]} Rb1 {[%emt 0:00:03]} 25. Rd2 {[%emt 0:03:46]} Rxb3 {[%emt 0:01:27]} 26. Rd8+ {[%emt 0:01:30]} Bf8 {[%emt 0:00:01]} 27. Bc6 {[%emt 0:00:09]} Kg7 {[%emt 0:04:48]} 28. Be8 {[%emt 0:00:20]} Be7 {[%emt 0:01:02]} 29. Rc8 {[%emt 0:03:24]} a6 {[%emt 0:14:05]} 30. Ra8 {[%emt 0:02:41]} b5 {[%emt 0:02:30]} 31. Ra7 {[%emt 0:00:40]} bxc4 {[%emt 0:03:04]} 32. Rxe7 {[%emt 0:01:58]} Kf8 {[%emt 0:00:05]} 33. Rxf7+ {[%emt 0:01:05]} Kxe8 {[%emt 0:00:00]} 34. Rc7 {[%emt 0:00:38]} Rb5 {[%emt 0:01:56]} 35. Kf3 {[%emt 0:00:16]} a5 {[%emt 0:00:05]} 36. Ke4 {[%emt 0:00:36]} a4 {[%emt 0:01:14]} 37. Ra7 {[%emt 0:00:52]} Rb4 {[%emt 0:00:31]} 38. Ra5 {[%emt 0:05:32]} c3+ {[%emt 0:00:31]} 39. Kd3 {[%emt 0:00:07]} Rc4 {[%emt 0:00:06]} 40. Kc2 {[%emt 0:01:01]} h5 {[%emt 0:02:21]} 41. Ra7 {[%emt 0:01:58]} g5 {[%emt 0:00:28]} 42. f4 {[%emt 0:00:26]} g4 {[%emt 0:01:03]} 43. e4 {[%emt 0:00:58]} Rxe4 {[%emt 0:00:13]} 44. Kxc3 {[%emt 0:00:02]} Re2 {[%emt 0:00:02]} 45. Kc4 {[%emt 0:01:03]} Rxh2 {[%emt 0:00:35]} 46. Kxc5 {[%emt 0:00:11]} Rh3 {[%emt 0:00:31]} 47. Kd6 {[%emt 0:05:46]} Rxg3 {[%emt 0:00:05]} 48. Kxe6 {[%emt 0:00:26]} Re3+ {[%emt 0:00:24]} 49. Kf5 {[%emt 0:00:08]} a3 {[%emt 0:00:10]} 50. Kg6 {[%emt 0:03:47]} g3 {[%emt 0:00:06]} 0-1

[Event "7th Iberoamerican-ch 2019"]
[Site "Linares"]
[Date "2019.08.12"]
[Round "3.17"]
[White "Cori, Jorge"]
[Black "Moral Garcia, Serafin"]
[Result "1-0"]
[ECO "A15"]
[WhiteElo "2686"]
[BlackElo "2283"]
[Annotator "RC"]
[PlyCount "101"]
[EventDate "2019.08.10"]
[EventType "swiss"]
[EventCountry "ESP"]
[SourceTitle "playchess.com"]
[Source "ChessBase"]
[SourceQuality "1"]
[TimeControl "5400+30"]

1. c4 {[%emt 0:00:00]} Nf6 {[%emt 0:00:11]} 2. Nf3 {[%emt 0:00:00]} g6 {[%emt 0:00:38]} 3. g3 {[%emt 0:00:13]} Bg7 {[%emt 0:00:40]} 4. Bg2 {[%emt 0:00:06]} O-O {[%emt 0:00:48]} 5. O-O {[%emt 0:00:06]} d6 {[%emt 0:01:06]} 6. Nc3 {[%emt 0:00:08]} c5 {[%emt 0:00:51]} 7. a3 {[%emt 0:02:52]} Nc6 {[%emt 0:02:11]} 8. Rb1 {[%emt 0:00:04]} Ne8 {[%emt 0:03:58]} 9. d3 {[%emt 0:11:00]} Nc7 {[%emt 0:02:27]} 10. Bd2 {[%emt 0:00:24]} a5 {[%emt 0:08:26]} 11. Ne1 {[%emt 0:13:34]} Bd7 {[%emt 0:09:06]} 12. Nd5 {[%emt 0:00:13]} Nxd5 {[%emt 0:03:10]} 13. cxd5 {[%emt 0:00:07]} Na7 {[%emt 0:01:48]} 14. h4 {[%emt 0:00:10]} h5 {[%emt 0:03:13]} 15. Nf3 {[%emt 0:01:54]} Nb5 {[%emt 0:01:40]} 16. Ng5 {[%emt 0:00:28]} Nc7 {[%emt 0:02:17]} 17. e4 {[%emt 0:00:56]} e6 {[%emt 0:03:09]} 18. dxe6 {[%emt 0:25:57]} Nxe6 {[%emt 0:01:42]} 19. Nxe6 {[%emt 0:00:07]} Bxe6 {[%emt 0:00:16]} 20. Bc3 {[%emt 0:00:04]} d5 {[%emt 0:03:49]} 21. Bxg7 {[%emt 0:00:21]} Kxg7 {[%emt 0:00:05]} 22. Qc2 {[%emt 0:06:09]} b6 {[%emt 0:04:52]} 23. Rbd1 {[%emt 0:01:52]} d4 {[%emt 0:03:21]} 24. f4 {[%emt 0:00:09]} Bg4 {[%emt 0:01:11]} 25. Bf3 {[%emt 0:02:25]} Bxf3 {[%emt 0:03:25]} 26. Rxf3 {[%emt 0:00:08]} f5 {[%emt 0:00:34]} 27. Re1 {[%emt 0:01:23]} Qe7 {[%emt 0:02:41]} 28. Rf2 {[%emt 0:00:10]} fxe4 {[%emt 0:04:16]} 29. dxe4 {[%emt 0:06:34]} Qe6 {[%emt 0:02:29]} 30. Qd3 {[%emt 0:00:16]} Rad8 {[%emt 0:00:33]} 31. Rc2 {[%emt 0:00:23]} Qg4 {[%emt 0:03:20]} 32. Rf1 {[%emt 0:00:44]} Qe6 {[%emt 0:00:29]} 33. Kh2 {[%emt 0:03:21]} Rfe8 {[%emt 0:02:09]} 34. Re1 {[%emt 0:00:07]} Re7 {[%emt 0:00:45]} 35. b3 {[%emt 0:00:56]} Ree8 {[%emt 0:03:24]} 36. b4 {[%emt 0:00:08]} axb4 {[%emt 0:00:35]} 37. axb4 {[%emt 0:00:06]} Qe7 {[%emt 0:02:17]} 38. e5 {[%emt 0:00:26]} Rf8 {[%emt 0:01:37]} 39. bxc5 {[%emt 0:03:26]} bxc5 {[%emt 0:00:01]} 40. Rec1 {[%emt 0:00:14]} Rc8 {[%emt 0:01:26]} 41. Qe4 {[%emt 0:00:06]} Rfd8 {[%emt 0:02:01]} 42. Ra2 {[%emt 0:07:04]} Rd6 {[%emt 0:07:57]} 43. Rca1 {[%emt 0:03:23]} Rb6 {[%emt 0:01:52]} 44. Ra7 {[%emt 0:07:12]} Rc7 {[%emt 0:00:01]} 45. R1a6 {[%emt 0:00:33]} Rxa7 {[%emt 0:01:59]} 46. Rxb6 {[%emt 0:00:05]} Ra2+ {[%emt 0:00:52]} 47. Kh3 {[%emt 0:00:33]} Qd7+ {[%emt 0:01:21]} 48. e6 {[%emt 0:00:13]} Qc8 {[%emt 0:00:15]} 49. Qe5+ {[%emt 0:00:29]} Kh7 {[%emt 0:00:00]} 50. Rb8 {[%emt 0:00:10]} Re2 {[%emt 0:00:04]} 51. Rxc8 {[%emt 0:00:20]} 1-0